bitfinex/quotes_ETHUSD_20250803
["timestamp","ask_amount","ask_price","bid_price","bid_amount"]
[1754262374986,0.581,3511.2,3511.1,2.99050397]
[1754262375796,0.581,3511.2,3511.1,3.57150397]
[1754262376784,0.581,3511.5,3511.2,2.84801643]
[1754262377319,0.581,3511.4,3511.2,2.84801643]
[1754262377525,1.0386,3511.3,3510.7,4.43]
[1754262377821,1.181,3511.2,3510.9,2.84824521]
[1754262378024,0.1424,3511.2,3510.9,2.84824521]
[1754262378198,1.0386,3511.1,3510.9,2.84824521]
[1754262378383,0.4576,3511.1,3510.9,2.84824521]
[1754262378587,0.581,3511.0,3510.9,2.84824521]
[1754262378988,0.581,3511.0,3510.7,3.57175593]
[1754262379320,0.581,3510.9,3510.7,3.57175593]
[1754262379706,0.4576,3511.0,3510.7,3.57175593]
[1754262379905,0.4576,3511.0,3510.8,2.84834431]
[1754262380530,1.0386,3510.9,3510.7,0.581]
[1754262380825,6.00996,3510.8,3510.7,0.581]
[1754262381122,6.00996,3510.8,3510.0,0.002]
[1754262381322,0.1424,3510.3,3510.0,0.002]
[1754262381845,0.581,3510.2,3510.0,0.002]
[1754262381994,1.0386,3510.2,3510.0,0.002]
[1754262382347,1.0386,3510.1,3510.0,0.002]
[1754262384093,1.181,3510.1,3510.0,0.002]
[1754262384835,0.1424,3510.1,3510.0,2.85100284]
[1754262385127,5.4616,3510.7,3510.2,2.84877079]
[1754262385436,0.581,3510.6,3510.2,2.84877079]
[1754262385729,0.581,3510.6,3510.3,2.84874634]
[1754262385730,0.1424,3510.5,3510.3,2.84874634]
[1754262385927,0.1424,3510.5,3510.4,2.84867821]
[1754262386290,0.1424,3510.5,3510.3,2.84874344]
[1754262386694,0.1424,3510.5,3510.4,2.84867821]
[1754262387428,6.845,3511.2,3510.7,2.84835384]
[1754262387627,0.1424,3511.0,3510.7,2.84837161]
[1754262387838,0.1424,3511.0,3510.4,0.1424]
[1754262388126,0.581,3510.9,3510.5,2.84852646]
[1754262388700,0.581,3510.9,3510.5,2.84859706]
[1754262389141,1.2447,3510.9,3510.4,0.1424]
[1754262389351,1.2447,3510.9,3509.8,4.424]
[1754262389352,1.0659,3510.8,3509.8,4.424]
[1754262389518,0.1424,3510.5,3510.0,0.1444]
[1754262389726,4.421,3511.1,3510.8,2.84832361]
[1754262389921,5.1566,3511.1,3510.6,2.84843514]
[1754262390233,1.0659,3511.0,3510.7,2.84841388]
[1754262390548,4.5654,3511.1,3510.8,2.84834986]
[1754262390839,5.1586,3511.1,3510.7,2.84841455]
[1754262391044,0.5932,3511.0,3510.8,3.0]
[1754262391903,4.5654,3511.1,3510.7,2.84836771]
[1754262392099,0.5932,3511.0,3510.8,3.0]
[1754262392303,4.421,3511.1,3511.0,5.84819139]
[1754262392930,0.1424,3511.2,3511.1,5.84811027]
[1754262393130,0.1424,3511.6,3511.4,2.84778908]
[1754262393433,4.5624,3511.6,3511.4,3.0]
[1754262393741,1.0659,3511.5,3511.3,3.0]
[1754262393904,0.1424,3511.4,3510.9,5.84825357]
[1754262394105,0.1424,3511.4,3510.8,0.1424]
[1754262394106,0.7356,3511.4,3511.0,2.84817107]
[1754262394426,0.5932,3511.3,3510.8,3.1424]
[1754262394625,1.0659,3511.2,3510.8,5.99068581]
[1754262394807,0.5932,3511.1,3510.8,0.1424]
[1754262395008,0.5932,3511.2,3510.8,0.1424]
[1754262395242,0.5932,3511.2,3510.9,2.84827252]
[1754262395935,1.0659,3511.1,3510.1,0.4716]
[1754262396260,0.7356,3511.0,3510.5,0.1424]
[1754262396627,0.1424,3511.0,3510.5,0.1424]
[1754262396826,0.5932,3510.9,3510.5,0.1424]
[1754262397049,0.5932,3510.9,3510.6,2.84850859]
[1754262397250,0.1424,3511.0,3510.5,0.1424]
[1754262397456,1.0659,3510.8,3510.1,2.84885318]
[1754262397731,0.5932,3510.7,3509.8,0.9074]
[1754262397926,0.1424,3510.9,3510.4,0.1424]
[1754262398162,0.1424,3510.9,3510.4,2.991065]
[1754262398328,0.7356,3510.9,3510.4,2.991065]
[1754262399163,0.1424,3510.9,3510.4,2.991065]
[1754262399397,0.1424,3510.9,3510.4,0.35765941]
[1754262400005,0.5932,3510.8,3510.4,0.35765941]
[1754262400273,0.5932,3510.8,3510.4,3.20632649]
[1754262400772,0.5932,3510.8,3510.4,0.35765941]
[1754262402934,1.0659,3510.7,3510.4,0.1424]
[1754262403135,0.4727,3510.7,3510.4,0.1424]
[1754262403461,0.5932,3510.6,3510.4,0.1424]
[1754262403665,0.4727,3510.5,3510.4,0.1424]
[1754262404080,1.2083,3510.5,3509.9,0.1424]
[1754262404656,1.2083,3510.5,3510.1,2.84891646]
[1754262405370,0.6151,3510.5,3510.1,2.84891646]
[1754262405576,0.5932,3510.4,3510.1,2.84891646]
[1754262406290,0.1424,3510.5,3510.0,0.21370069]
[1754262406500,0.5932,3510.3,3510.0,0.21370069]
[1754262406694,0.4727,3510.2,3509.6,0.002]
[1754262406994,0.1424,3510.1,3509.6,0.002]
[1754262407357,1.0659,3510.0,3509.6,0.002]
[1754262407946,0.5932,3510.0,3509.6,0.002]
[1754262408586,0.5932,3509.9,3509.6,0.002]
[1754262408994,0.5932,3509.9,3509.6,2.85132104]
[1754262409164,0.1424,3510.1,3509.6,0.002]
[1754262409349,0.5932,3509.8,3509.6,0.002]
[1754262409877,0.4727,3509.9,3509.6,0.002]
[1754262410081,0.5932,3509.7,3509.6,0.002]
[1754262410680,1.10151557,3509.7,3509.6,0.002]
[1754262410846,1.91715156,3509.7,3509.6,0.002]
[1754262411048,5.50276713,3509.7,3509.6,0.002]
[1754262411243,5.46715156,3509.7,3509.6,0.002]
[1754262411449,5.46715156,3509.7,3509.2,0.002]
[1754262411450,3.55,3509.6,3509.2,0.002]
[1754262411649,0.55,3509.4,3509.2,0.002]
[1754262411882,3.9251752,3509.5,3509.2,0.002]
[1754262411883,8.00261963,3509.3,3509.2,0.002]
[1754262412083,7.967,3509.3,3509.2,0.002]
[1754262412287,3.55,3509.2,3507.9,2.85070733]
[1754262412484,0.03562166,3509.1,3507.9,2.85064871]
[1754262412662,0.45574,3509.0,3507.9,3.13571358]
[1754262412864,1.0659,3508.9,3507.9,3.13571358]
[1754262413050,1.0659,3508.8,3508.0,2.85062676]
[1754262413250,5.0102,3508.7,3508.0,2.85062676]
[1754262413450,4.417,3508.7,3508.0,2.85062676]
[1754262413650,0.5932,3508.6,3508.0,2.85062676]
[1754262414086,4.416,3508.5,3508.1,2.85052519]
[1754262414490,5.0092,3508.5,3508.1,2.85052519]
[1754262414891,4.416,3508.5,3508.2,2.85044978]
[1754262415786,5.0092,3508.5,3508.1,2.85052598]
[1754262416951,0.5932,3508.4,3508.1,2.85052598]
[1754262417847,0.5932,3508.4,3507.9,3.13576795]
[1754262418147,7.05,3510.0,3508.2,2.85044799]
[1754262418347,5.0062,3509.1,3508.4,2.85023133]
[1754262418581,3.0,3509.0,3508.5,2.85021152]
[1754262418978,3.8895576,3509.5,3508.3,0.4516]
[1754262419181,3.8895576,3509.5,3508.7,2.85000677]
[1754262419182,8.4518,3509.4,3508.7,2.85000677]
[1754262419496,3.6113,3509.3,3508.7,2.85000677]
[1754262420282,0.6113,3509.2,3508.7,2.85000677]
[1754262420595,0.6113,3509.1,3508.7,2.85000677]
[1754262420900,0.4285,3509.9,3508.9,2.84989597]
[1754262421074,4.5544,3509.3,3508.9,2.84989597]
[1754262421257,0.1424,3509.3,3508.9,2.84989597]
[1754262421465,4.5534,3509.3,3509.2,2.84965234]
[1754262421869,0.1424,3509.3,3509.2,3.51364905]
[1754262422080,0.1424,3509.3,3509.2,4.45414905]
[1754262422296,6.849,3510.9,3509.2,4.45413374]
[1754262422297,7.4603,3510.9,3509.2,4.45413374]
[1754262422543,0.1424,3510.0,3509.8,2.84910263]
[1754262422701,4.5544,3510.0,3509.7,2.84923237]
[1754262423002,4.5544,3510.0,3509.6,2.84932755]
[1754262423297,4.5544,3510.0,3509.5,0.1424]
[1754262423483,5.1657,3510.0,3509.6,2.84930709]
[1754262424060,5.1657,3510.0,3509.7,2.84923109]
[1754262424602,5.1657,3510.0,3509.8,2.84914279]
[1754262424799,5.1657,3510.0,3509.5,2.99025135]
[1754262425103,5.1657,3510.0,3509.5,3.44972616]
[1754262425261,4.5544,3510.0,3509.5,3.44972616]
[1754262425466,4.5544,3510.0,3509.8,2.84915352]
[1754262425893,4.5544,3510.0,3509.6,2.84932755]
[1754262426103,4.5544,3510.0,3509.7,2.84924637]
[1754262426312,5.1657,3510.0,3509.5,3.44970132]
[1754262426503,5.1657,3510.0,3509.7,2.84917159]
[1754262427314,1.0398,3509.9,3509.5,2.8493861]
[1754262427525,0.7537,3509.8,3509.4,0.21394577]
[1754262427691,0.7537,3509.8,3509.6,2.84925495]
[1754262429529,0.6113,3510.2,3509.7,2.84924637]
[1754262429678,0.1424,3510.0,3509.9,2.84908401]
[1754262429880,0.6113,3510.5,3510.1,2.84890182]
[1754262430100,0.1424,3510.3,3509.9,2.84908401]
[1754262430308,0.1424,3510.3,3510.1,2.84889811]
[1754262430636,4.405,3510.4,3509.9,2.84908401]
[1754262430637,0.4285,3510.7,3509.9,0.9405]
[1754262430781,0.1424,3510.5,3510.1,2.84892168]
[1754262431117,0.1424,3510.6,3510.4,2.84867821]
[1754262431288,4.405,3510.5,3510.2,2.84883648]
[1754262431697,4.405,3510.5,3510.0,0.1424]
[1754262431879,0.1424,3510.6,3510.4,2.84867821]
[1754262432078,4.405,3510.5,3510.3,2.84869782]
[1754262432304,4.405,3510.5,3510.2,2.8488269]
[1754262433014,4.405,3510.5,3510.1,2.84892004]
[1754262433215,4.405,3510.5,3510.4,2.84867821]
[1754262434005,4.405,3510.5,3510.3,2.8487412]
[1754262434201,0.7537,3510.6,3510.5,2.84859706]
[1754262434202,0.1424,3510.6,3510.5,2.84859706]
[1754262434644,0.001,3510.7,3510.5,2.84859706]
[1754262434645,0.001,3510.7,3510.6,2.84851592]
[1754262436144,0.001,3510.7,3510.6,3.30011592]
[1754262436309,0.001,3510.7,3510.6,4.42412722]
[1754262437135,0.001,3511.1,3511.0,2.84819139]
[1754262437342,0.001,3511.1,3511.0,2.99059139]
[1754262437576,0.001,3511.1,3511.0,3.93709139]
[1754262439811,0.001,3511.1,3511.0,2.99059139]
[1754262441342,0.001,3511.1,3511.0,3.32015422]
[1754262442069,0.6123,3511.7,3511.6,2.84770474]
[1754262442070,0.001,3511.7,3511.6,2.84770474]
[1754262442234,0.001,3511.7,3511.6,3.79420474]
[1754262442424,0.001,3511.7,3511.6,3.93660474]
[1754262442769,0.001,3511.7,3511.6,5.66644591]
[1754262443263,0.14358352,3514.4,3512.6,2.84689403]
[1754262443264,0.6113,3512.8,3512.6,2.84689403]
[1754262443426,4.5484,3512.9,3512.0,4.406]
[1754262443626,0.6113,3512.6,3512.4,2.98945594]
[1754262443928,0.6113,3512.5,3512.4,2.98945594]
[1754262445051,0.6113,3512.5,3512.4,0.1424]
[1754262445262,1.0398,3512.5,3512.0,4.406]
[1754262445566,1.0398,3512.5,3512.1,0.1424]
[1754262445567,0.4285,3512.5,3512.1,0.1424]
[1754262446165,0.6113,3512.4,3512.1,0.1424]
[1754262446368,0.6113,3512.4,3512.2,2.84721826]
[1754262446664,0.6113,3512.4,3512.3,2.8471372]
[1754262447128,1.0398,3512.4,3512.1,0.1424]
[1754262447336,0.5709,3512.3,3511.8,0.1424]
[1754262447545,1.1822,3512.3,3512.0,2.8473621]
[1754262447864,0.6113,3512.6,3512.1,0.1424]
[1754262448030,4.5474,3512.7,3512.2,2.84721826]
[1754262448229,0.6113,3512.5,3512.2,2.84721826]
[1754262448444,0.6113,3512.5,3512.3,2.8470729]
[1754262448671,0.1434,3512.7,3512.3,0.60508058]
[1754262448871,0.001,3512.7,3512.6,2.98929403]
[1754262449274,0.001,3512.7,3512.6,8.34609403]
[1754262449855,0.001,3512.7,3512.6,7.39329403]
[1754262450956,0.001,3512.7,3512.6,2.98929403]
[1754262451144,0.001,3512.7,3512.6,7.39429403]
[1754262453044,0.5766,3512.7,3512.6,7.39429403]
[1754262454458,0.001,3512.7,3512.6,7.39429403]
[1754262454776,0.001,3512.7,3512.6,8.5364971]
[1754262456882,0.5766,3512.7,3512.6,8.5364971]
[1754262457244,0.001,3512.7,3512.6,8.5364971]
[1754262457445,0.001,3512.7,3512.6,0.1424]
[1754262457446,1.0148,3512.7,3512.6,0.1424]
[1754262457764,1.0148,3512.7,3512.3,4.398]
[1754262457964,0.4382,3512.6,3512.4,0.2848]
[1754262458166,1.0138,3512.6,3512.4,0.1424]
[1754262458480,1.0138,3512.5,3512.4,2.98944512]
[1754262459391,1.0138,3512.5,3512.2,4.398]
[1754262459596,1.0138,3512.4,3512.2,2.84715568]
[1754262459774,0.4382,3512.4,3512.3,2.8471372]
[1754262460134,0.001,3512.7,3512.5,2.8468965]
[1754262460277,0.001,3512.7,3512.6,2.84689403]
[1754262460465,0.001,3512.7,3512.6,7.38829403]
[1754262461777,0.001,3512.7,3512.6,8.32199403]
[1754262464191,1e-08,3512.7,3512.6,8.87199403]
[1754262464353,1e-08,3512.7,3512.6,11.7402411]
[1754262464662,0.4382,3514.5,3514.3,2.84545235]
[1754262464856,11.242,3514.9,3514.4,2.84543161]
[1754262465047,0.1434,3514.7,3514.2,0.1424]
[1754262465253,0.5756,3514.6,3514.5,2.84533948]
[1754262465801,0.5756,3514.6,3514.5,2.98773948]
[1754262466149,0.001,3514.7,3514.6,2.84527399]
[1754262466777,0.001,3514.7,3514.6,4.08699648]
[1754262467991,1.0148,3514.7,3514.6,0.21872114]
[1754262468400,1.0148,3514.7,3514.5,0.1424]
[1754262468603,1.0138,3514.6,3514.5,0.1424]
[1754262469575,1.0138,3514.6,3514.5,0.21224479]
[1754262469907,1.0138,3514.6,3514.2,0.1424]
[1754262470071,0.1434,3514.7,3514.2,0.21827228]
[1754262470072,1.0138,3514.5,3514.2,0.21827228]
[1754262470275,1.0138,3514.4,3514.1,2.98805771]
[1754262470489,0.5756,3514.3,3514.1,0.1424]
[1754262470691,1.0138,3514.2,3514.1,0.1424]
[1754262471567,1.0138,3514.2,3514.1,0.35160829]
[1754262471795,1.0138,3514.2,3514.1,0.1424]
[1754262472494,1.0138,3514.2,3513.8,2.9883136]
[1754262472799,0.1424,3514.3,3513.8,2.9883136]
[1754262472800,1.0138,3514.1,3513.8,2.9883136]
[1754262473016,0.4382,3514.1,3513.8,0.1424]
[1754262473168,1.0138,3514.0,3513.8,0.1424]
[1754262473496,0.5756,3514.4,3513.9,0.1424]
[1754262473668,0.5756,3514.4,3514.2,2.84552786]
[1754262473868,0.5756,3514.4,3514.3,2.84551688]
[1754262474413,0.5756,3514.4,3514.2,2.98797463]
[1754262474563,0.5756,3514.4,3514.2,0.1424]
[1754262474762,0.4382,3514.6,3514.4,2.8453648]
[1754262475103,0.001,3514.7,3514.6,5.84527399]
[1754262475528,0.001,3514.7,3514.6,6.30317399]
[1754262475716,0.001,3514.7,3514.6,6.92137399]
[1754262475924,0.001,3514.7,3514.6,8.45143687]
[1754262478047,0.001,3514.7,3514.6,11.91273687]
[1754262479548,0.5764,3514.7,3514.6,11.91273687]
[1754262479743,0.5764,3514.7,3514.6,10.49666299]
[1754262480049,0.5764,3514.7,3514.6,3.256389]
[1754262480050,1.0498,3514.7,3514.6,3.256389]
[1754262480610,1.0498,3514.7,3514.6,3.1424]
[1754262482011,1.0498,3514.7,3514.6,3.0]
[1754262482341,0.001,3514.7,3514.6,7.01161949]
[1754262482978,0.001,3514.7,3514.6,7.95331949]
[1754262483180,0.001,3514.7,3514.6,7.01161949]
[1754262484666,0.001,3514.7,3514.6,7.95331949]
[1754262485055,0.001,3514.7,3514.6,7.01161949]
[1754262485270,0.001,3514.7,3514.6,7.12560949]
[1754262485478,0.1424,3516.0,3514.7,3.0]
[1754262485680,0.4734,3516.1,3514.8,6.92683053]
[1754262485858,0.4734,3516.1,3516.0,2.84414106]
[1754262486199,0.001,3516.2,3516.1,2.84406018]
[1754262487081,0.001,3516.2,3516.1,3.23376419]
[1754262487299,0.001,3516.2,3516.1,3.37616419]
[1754262487457,0.001,3516.2,3516.1,6.37616419]
[1754262488287,0.001,3516.2,3516.1,10.76916419]
[1754262488601,0.001,3516.2,3516.1,10.98643904]
[1754262489200,0.5764,3516.2,3516.1,10.98643904]
[1754262489860,0.4744,3516.2,3516.1,3.74937886]
[1754262490202,1.0498,3516.2,3516.1,3.74937886]
[1754262490429,1.0498,3516.2,3516.1,6.59343904]
[1754262490709,0.5764,3516.2,3516.1,6.59343904]
[1754262491910,1.0498,3516.2,3515.8,3.0]
[1754262492083,0.1434,3516.2,3515.8,3.0]
[1754262492287,1.0488,3516.1,3515.8,3.21219482]
[1754262492470,0.1434,3516.2,3515.8,3.21219482]
[1754262492471,0.5754,3516.0,3515.8,3.21219482]
[1754262492676,0.4734,3515.9,3515.8,0.21219482]
[1754262492876,0.4734,3515.9,3515.6,0.1424]
[1754262493111,0.5754,3515.8,3515.4,4.5344]
[1754262493307,0.4734,3515.7,3515.4,4.5344]
[1754262493609,1.0488,3515.6,3515.4,4.5344]
[1754262493808,1.0488,3515.5,3515.2,3.0]
[1754262494008,1.0488,3515.4,3515.1,3.1424]
[1754262494217,1.0488,3515.3,3515.1,3.35690175]
[1754262494417,0.4734,3515.2,3515.1,0.35690175]
[1754262494620,1.0488,3515.2,3515.1,0.21450175]
[1754262494830,1.0488,3515.2,3514.8,2.84511074]
[1754262494996,0.001,3516.2,3514.9,3.0]
[1754262495186,1.0488,3515.1,3514.9,0.21411727]
[1754262495387,1.0488,3515.1,3515.0,2.84495021]
[1754262495782,1.0488,3515.1,3514.9,2.84501549]
[1754262495982,0.5754,3515.0,3514.9,6.05915104]
[1754262496220,0.5754,3515.0,3514.9,3.21413555]
[1754262496521,0.5754,3515.0,3514.2,0.501]
[1754262496522,1.1912,3515.0,3514.0,0.5754]
[1754262496690,0.1424,3514.4,3514.0,3.06018668]
[1754262496889,0.1424,3514.4,3514.1,3.0]
[1754262497083,1.0488,3514.3,3514.0,3.0]
[1754262497287,1.0488,3514.2,3513.8,0.1424]
[1754262497488,0.1424,3514.4,3513.8,0.1424]
[1754262497489,1.0488,3514.1,3513.8,0.1424]
[1754262497687,1.0488,3514.0,3513.8,0.1424]
[1754262497927,1.0488,3513.9,3513.8,5.98832179]
[1754262498608,1.0488,3513.9,3513.8,0.1424]
[1754262498795,1.0488,3513.9,3513.7,0.21477648]
[1754262498995,0.1424,3514.4,3513.7,2.84598995]
[1754262498996,0.5754,3514.2,3513.7,2.84598995]
[1754262499199,0.5754,3514.2,3513.9,2.84576747]
[1754262499422,0.1424,3514.3,3513.8,2.98830357]
[1754262499423,0.5754,3514.1,3513.8,2.98830357]
[1754262499623,0.5754,3514.0,3513.8,2.98830357]
[1754262499927,0.5754,3514.0,3513.9,2.8458408]
[1754262500601,0.5754,3514.0,3513.8,2.98831636]
[1754262501201,0.5754,3514.0,3513.9,2.8458408]
[1754262501789,0.1424,3514.3,3513.8,0.1424]
[1754262502003,0.5764,3514.7,3514.0,0.1424]
[1754262502217,0.7188,3514.7,3514.4,2.84539813]
[1754262502391,0.7188,3514.7,3514.5,2.84533298]
[1754262502608,0.7188,3514.7,3513.9,0.50741084]
[1754262502609,0.001,3514.7,3514.6,2.84527399]
[1754262504590,0.001,3514.7,3514.5,0.1424]
[1754262504792,0.001,3514.7,3514.6,2.84527399]
[1754262504986,0.5764,3514.7,3514.6,2.84527399]
[1754262505230,0.5764,3514.7,3514.5,2.98774396]
[1754262505687,0.5764,3514.7,3514.6,2.84527399]
[1754262506022,0.001,3514.7,3514.5,0.1424]
[1754262506537,0.5754,3514.6,3514.5,0.1424]
[1754262506839,1.0488,3514.6,3514.5,2.98775495]
[1754262507135,0.5754,3514.6,3514.5,0.1424]
[1754262507291,0.5754,3514.6,3514.5,2.98775495]
[1754262508218,0.001,3514.7,3514.5,2.98775495]
[1754262508793,0.617,3514.7,3514.5,0.1424]
[1754262509921,1.0576,3514.6,3514.4,4.396]
[1754262510120,0.616,3514.6,3514.5,2.84535331]
[1754262511151,0.616,3514.6,3514.4,7.24141553]
[1754262511341,0.4416,3514.6,3514.4,4.396]
[1754262511551,0.616,3514.5,3514.4,4.396]
[1754262512418,0.4426,3514.7,3514.5,2.84535026]
[1754262512617,0.4426,3514.7,3514.4,4.396]
[1754262512822,0.616,3514.6,3514.4,7.24141637]
[1754262513319,0.616,3514.6,3514.4,4.396]
[1754262513752,0.001,3514.7,3514.6,2.84527399]
[1754262516423,11.4,3516.4,3514.7,8.53557912]
[1754262516626,0.616,3516.5,3515.6,2.8444064]
[1754262516830,0.1424,3516.1,3515.6,7.2334064]
[1754262517161,0.1424,3516.1,3515.6,4.389]
[1754262517526,0.1424,3516.1,3516.0,2.84414106]
[1754262517750,0.1424,3516.1,3515.9,2.84421243]
[1754262518156,0.1424,3516.1,3516.0,2.84414106]
[1754262518872,0.1424,3516.1,3515.7,2.84437877]
[1754262519064,0.1424,3516.1,3515.9,2.84415662]
[1754262520071,1.0576,3516.0,3515.6,4.389]
[1754262520232,1.0576,3516.0,3515.1,0.501]
[1754262520233,0.1424,3515.8,3515.3,4.5314]
[1754262520432,0.001,3516.6,3515.3,0.21685634]
[1754262520433,0.1424,3515.6,3515.3,0.21685634]
[1754262520633,0.1424,3515.6,3515.4,2.8446265]
[1754262520634,1.0576,3515.5,3515.4,2.8446265]
[1754262520866,0.617,3516.2,3515.9,2.84416224]
[1754262521036,0.617,3516.2,3516.0,2.84413338]
[1754262521364,1.2,3516.1,3515.7,2.84437394]
[1754262521564,0.1424,3516.1,3515.7,2.84437394]
[1754262521733,1.0576,3516.0,3515.7,2.84437394]
[1754262521934,0.4416,3516.0,3515.7,2.84437394]
[1754262522136,1.0576,3516.0,3515.7,2.84437394]
[1754262522448,0.616,3515.9,3515.7,2.84437394]
[1754262522767,0.1424,3516.1,3516.0,2.84414106]
[1754262522974,0.001,3516.2,3516.1,2.84406018]
[1754262524840,1.0586,3516.2,3516.1,2.84406018]
[1754262525293,0.617,3516.2,3516.1,2.84406018]
[1754262525583,0.001,3516.2,3516.1,2.84406018]
[1754262532178,0.001,3516.2,3516.1,2.98646018]
[1754262533781,0.001,3516.2,3516.1,4.00832635]
[1754262534080,0.001,3516.2,3516.1,4.94302635]
[1754262534488,0.001,3516.2,3516.1,4.00832635]
[1754262534962,0.001,3516.2,3516.1,2.98646018]
[1754262534963,0.617,3516.2,3516.1,2.98646018]
[1754262535163,0.001,3516.2,3516.1,2.98646018]
[1754262537879,0.001,3516.2,3516.1,5.98646018]
[1754262538645,0.001,3516.2,3516.1,6.42736018]
[1754262538879,0.001,3516.2,3516.1,8.28711635]
[1754262539686,0.001,3516.2,3516.1,7.35241635]
[1754262541966,0.001,3516.2,3516.1,8.29721635]
[1754262542370,0.001,3516.2,3516.1,7.35241635]
[1754262542570,0.001,3516.2,3516.1,7.84621635]
[1754262542779,0.001,3516.2,3516.1,8.29721635]
[1754262542977,0.001,3516.2,3516.1,7.35241635]
[1754262544012,0.001,3516.2,3516.1,8.29721635]
[1754262545507,0.001,3516.2,3516.1,8.89321635]
[1754262546291,0.001,3516.2,3516.1,9.44321635]
[1754262546593,0.001,3516.6,3516.5,2.84373666]
[1754262546808,0.001,3516.6,3516.5,7.94189403]
[1754262547107,0.001,3516.6,3516.5,11.88669403]
[1754262547404,0.11380442,3517.2,3517.1,2.84325154]
[1754262547608,0.11380442,3517.2,3517.1,7.23025154]
[1754262547821,0.11380442,3517.2,3517.1,7.37265154]
[1754262548175,0.11380442,3517.2,3517.1,8.39425188]
[1754262549083,0.70980442,3517.2,3517.1,8.39425188]
[1754262549281,0.70980442,3517.2,3516.4,3.4938]
[1754262549282,1.13800442,3517.2,3516.1,0.596]
[1754262549505,0.1424,3516.8,3516.0,4.5324]
[1754262549728,1.0242,3516.7,3515.7,5.244791]
[1754262550026,0.03554064,3517.1,3515.7,4.9144791]
[1754262550027,1.0242,3516.6,3515.7,4.9144791]
[1754262550174,1.0242,3516.5,3516.0,2.84412702]
[1754262550374,1.0242,3516.5,3515.7,4.22363582]
[1754262550375,1.1666,3516.4,3515.9,0.1424]
[1754262550606,0.1424,3516.4,3515.9,2.98661065]
[1754262550903,1.0242,3516.3,3516.1,2.84405834]
[1754262551209,0.596,3516.3,3516.2,2.84397929]
[1754262551386,0.596,3516.3,3516.1,3.34273001]
[1754262551582,1.0242,3516.2,3516.1,2.9864421]
[1754262551811,1.0242,3516.2,3516.0,4.389]
[1754262552118,1.0242,3516.1,3515.8,4.389]
[1754262552410,0.11380442,3517.2,3515.9,2.98662196]
[1754262552411,0.596,3516.0,3515.9,2.98662196]
[1754262552980,0.1424,3516.4,3516.0,2.84409481]
[1754262553176,0.596,3516.3,3516.0,7.23914106]
[1754262553371,0.11380442,3517.2,3516.5,2.84365636]
[1754262553681,0.596,3516.8,3516.3,4.395]
[1754262553992,0.1424,3517.0,3516.3,4.396]
[1754262554194,0.1424,3517.0,3516.4,0.1424]
[1754262554398,1.0242,3516.9,3516.4,0.1424]
[1754262554700,0.4282,3516.9,3516.7,2.84356727]
[1754262554879,0.596,3516.8,3516.7,2.84356727]
[1754262555280,1.0242,3516.8,3516.7,2.84356727]
[1754262555601,0.596,3516.8,3516.7,2.98596727]
[1754262555777,0.4282,3517.0,3516.7,2.98596727]
[1754262555972,1.0242,3516.9,3516.7,2.9859125]
[1754262556177,1.0242,3516.8,3516.7,2.98595547]
[1754262556400,1.0242,3516.8,3516.7,2.84355547]
[1754262556671,0.596,3516.8,3516.5,2.84373666]
[1754262556874,0.596,3516.8,3516.6,2.8436558]
[1754262557076,0.596,3516.7,3516.6,2.8436558]
[1754262557516,0.596,3516.7,3516.4,0.1424]
[1754262557517,1.0242,3516.7,3516.4,0.1424]
[1754262557709,0.596,3516.7,3516.4,0.1424]
[1754262557945,0.4282,3516.6,3516.5,2.84372409]
[1754262558116,1.0242,3516.6,3516.5,2.84372409]
[1754262558290,0.4282,3516.9,3516.8,2.84349408]
[1754262558494,1.0242,3516.9,3516.5,3.95179663]
[1754262558694,0.4282,3516.9,3516.8,2.84349408]
[1754262558889,1.0242,3516.9,3516.8,2.84349408]
[1754262560722,1.0242,3516.9,3516.7,2.84355202]
[1754262561021,0.1424,3517.0,3516.8,2.84348823]
[1754262561216,0.1424,3517.0,3516.7,2.84355722]
[1754262561526,0.1424,3517.0,3516.8,2.84347854]
[1754262561721,1.0242,3516.9,3516.8,2.84347854]
[1754262562228,1.0242,3516.9,3516.7,2.8435596]
[1754262562432,1.0242,3516.8,3516.6,2.84364443]
[1754262562619,0.1424,3517.0,3516.7,2.84357494]
[1754262562915,0.1424,3517.0,3516.5,2.841911]
[1754262563223,1.0242,3516.9,3516.7,2.8435092]
[1754262563532,0.11380442,3517.2,3516.3,3.05739779]
[1754262563533,0.1424,3516.7,3516.3,3.05739779]
[1754262563702,1.0242,3516.6,3516.3,3.05739779]
[1754262564026,1.0242,3516.5,3516.2,0.1424]
[1754262564225,1.0242,3516.4,3516.0,3.8547]
[1754262564423,0.11380442,3517.2,3515.9,4.392]
[1754262564424,1.1666,3516.3,3516.2,2.84397929]
[1754262564836,0.7384,3516.3,3516.2,2.84397929]
[1754262565131,1.1666,3516.6,3516.4,2.84377075]
[1754262565317,0.5706,3516.6,3516.4,2.84377075]
[1754262565523,0.596,3516.5,3516.4,2.84377075]
[1754262565723,1.0242,3516.5,3516.2,2.8439715]
[1754262566030,1.05974771,3516.4,3515.6,2.8444401]
[1754262566231,0.1424,3516.2,3515.5,0.1424]
[1754262566438,0.1424,3516.2,3516.0,2.84406826]
[1754262566623,1.0242,3516.1,3515.9,2.84421307]
[1754262566801,0.1424,3516.2,3515.5,0.69895988]
[1754262566802,1.0242,3516.0,3515.8,2.84429682]
[1754262566996,1.0242,3515.9,3515.7,2.84437163]
[1754262567237,1.0242,3515.8,3515.6,2.84440425]
[1754262567534,0.1424,3516.0,3515.6,2.84440425]
[1754262567705,1.0242,3515.7,3515.6,2.84440425]
[1754262568527,0.596,3515.7,3515.6,2.84440425]
[1754262568730,1.0242,3515.7,3515.6,2.84440425]